bitfinex-derivatives/quotes_BNBF0:USTF0_20241231
["timestamp","ask_amount","ask_price","bid_price","bid_amount"]
[1735664028448,1.46615829,712.66,711.38,0.28114369]
[1735664037252,1.46615829,712.66,711.42,1.04903036]
[1735664038248,1.46615829,712.66,711.41,1.04903036]
[1735664039754,1.46615829,712.66,711.38,1.33017405]
[1735664040761,1.46615829,712.66,711.38,0.28114369]
[1735664046453,1.46615829,712.66,711.47,1.04903036]
[1735664047458,1.46615829,712.66,711.38,0.28114369]
[1735664047459,1.46615829,712.66,711.49,1.04903036]
[1735664048756,1.46615829,712.66,711.48,1.04903036]
[1735664049758,1.46615829,712.66,711.38,0.28114369]
[1735664051558,1.46615829,712.66,711.39,1.04903036]
[1735664053160,1.46615829,712.66,711.41,1.04903036]
[1735664053861,0.25836324,712.65,711.48,1.04903036]
[1735664055562,1.46615829,712.66,711.48,1.04903036]
[1735664059956,1.05224784,712.65,711.55,1.04903036]
[1735664061562,0.25838343,712.64,711.55,1.04903036]
[1735664063262,1.05224784,712.65,711.55,1.04903036]
[1735664063463,0.25839563,712.64,711.55,1.04903036]
[1735664064967,1.05224784,712.56,711.48,1.04903036]
[1735664065161,0.25839563,712.55,711.48,1.04903036]
[1735664065359,1.05224784,712.56,711.48,1.04903036]
[1735664066367,1.4662458,712.57,711.39,1.04903036]
[1735664068765,1.4662458,712.57,711.42,1.04903036]
[1735664069469,1.05224784,712.69,711.42,1.04903036]
[1735664069676,1.46617888,712.66,711.42,1.04903036]
[1735664069966,0.25835681,712.65,711.47,1.04903036]
[1735664070970,0.25835681,712.65,711.38,0.28114369]
[1735664070971,1.05224784,712.63,711.64,1.04903036]
[1735664072071,1.46617888,712.66,711.38,0.28114369]
[1735664072072,1.46617888,712.66,711.61,1.04903036]
[1735664073473,1.46617888,712.66,711.6,1.04903036]
[1735664074675,1.46617888,712.66,711.62,1.04903036]
[1735664075574,1.46617888,712.66,711.65,1.04903036]
[1735664078679,1.46617888,712.66,711.38,0.28114369]
[1735664078680,1.46617888,712.66,711.62,1.04903036]
[1735664079570,1.46617888,712.66,711.63,1.04903036]
[1735664079571,0.25833736,712.65,711.63,1.04903036]
[1735664080978,1.05224784,712.64,711.68,1.04903036]
[1735664081179,0.25833736,712.63,711.68,1.04903036]
[1735664081683,1.05224784,712.64,711.68,1.04903036]
[1735664081885,0.25834291,712.63,711.68,1.04903036]
[1735664082579,0.25834291,712.62,711.68,1.04903036]
[1735664082881,1.05224784,712.65,711.68,1.04903036]
[1735664083085,0.2583408,712.64,711.68,1.04903036]
[1735664083287,0.2583408,712.64,711.69,1.04903036]
[1735664084284,1.05224784,712.63,711.66,1.04903036]
[1735664084586,0.25836024,712.62,711.66,1.04903036]
[1735664085178,0.25836017,712.61,711.66,1.04903036]
[1735664085381,0.25836017,712.6,711.66,1.04903036]
[1735664085582,0.25836017,712.59,711.64,1.04903036]
[1735664085787,0.25836017,712.58,711.64,1.04903036]
[1735664085986,0.25836017,712.57,711.64,1.04903036]
[1735664086188,0.25836017,712.56,711.64,1.04903036]
[1735664086489,0.25836017,712.55,711.64,1.04903036]
[1735664086688,1.05224784,712.61,711.64,1.04903036]
[1735664086890,0.25835801,712.6,711.64,1.04903036]
[1735664088295,1.05224784,712.59,711.62,1.04903036]
[1735664088493,0.25835801,712.58,711.62,1.04903036]
[1735664089492,1.05224784,712.57,711.61,1.04903036]
[1735664089692,0.25838684,712.56,711.61,1.04903036]
[1735664090196,1.05224784,712.57,711.61,1.04903036]
[1735664090796,1.05224784,712.59,711.62,1.04903036]
[1735664091897,2.51842672,712.66,711.47,1.04903036]
[1735664092095,0.25838177,712.65,711.47,1.04903036]
[1735664092393,2.51842672,712.66,711.47,1.04903036]
[1735664092696,0.25837889,712.65,711.47,1.04903036]
[1735664093196,0.25837936,712.64,711.48,1.04903036]
[1735664093391,0.25837936,712.63,711.48,1.04903036]
[1735664093593,1.46617888,712.66,711.48,1.04903036]
[1735664093793,0.25838587,712.65,711.48,1.04903036]
[1735664094291,0.25838587,712.65,711.46,1.04903036]
[1735664094996,2.51842672,712.66,711.46,1.04903036]
[1735664095195,0.25838238,712.65,711.46,1.04903036]
[1735664095498,0.25838238,712.65,711.38,0.28114369]
[1735664095499,0.25838238,712.65,711.48,1.04903036]
[1735664096498,0.25838238,712.65,711.38,0.28114369]
[1735664096499,1.31063022,712.65,711.43,1.04903036]
[1735664096797,0.25838238,712.64,711.43,1.04903036]
[1735664097492,1.05224784,712.65,711.43,1.04903036]
[1735664097697,0.25838234,712.64,711.43,1.04903036]
[1735664098697,1.05224784,712.58,711.56,1.04903036]
[1735664098898,0.25838234,712.57,711.56,1.04903036]
[1735664099701,1.31063018,712.57,711.54,1.04903036]
[1735664100000,0.25838234,712.56,711.54,1.04903036]
[1735664100200,0.25838392,712.55,711.54,1.04903036]
[1735664100398,0.25838392,712.54,711.54,1.04903036]
[1735664100601,0.25838392,712.53,711.54,1.04903036]
[1735664100795,1.05224784,712.57,711.54,1.04903036]
[1735664100998,0.25838733,712.56,711.54,1.04903036]
[1735664102002,0.25838887,712.55,711.54,1.04903036]
[1735664102203,0.25838887,712.56,711.54,1.04903036]
[1735664102400,0.25838887,712.55,711.54,1.04903036]
[1735664102599,0.25838887,712.54,711.54,1.04903036]
[1735664102800,0.25838887,712.53,711.54,1.04903036]
[1735664102998,0.25838887,712.52,711.54,1.04903036]
[1735664103199,0.25838887,712.51,711.54,1.04903036]
[1735664103404,0.25838887,712.5,711.54,1.04903036]
[1735664103604,0.25838887,712.49,711.54,1.04903036]
[1735664103804,0.25838887,712.48,711.54,1.04903036]
[1735664104007,1.05224784,712.53,711.56,1.04903036]
[1735664104205,0.25838547,712.52,711.56,1.04903036]
[1735664104700,0.25837313,712.51,711.56,1.04903036]
[1735664104899,0.25837313,712.5,711.56,1.04903036]
[1735664105103,0.25837313,712.49,711.58,1.04903036]
[1735664105302,1.05224784,712.55,711.58,1.04903036]
[1735664106207,1.46618402,712.58,711.38,0.28114369]
[1735664115307,0.25842197,712.57,711.38,0.28114369]
[1735664116012,0.25842386,712.56,711.38,0.28114369]
[1735664116306,0.25842386,712.55,711.38,0.28114369]
[1735664116508,0.25842386,712.54,711.38,0.28114369]
[1735664116707,0.25842386,712.53,711.38,0.28114369]
[1735664116908,0.25842386,712.52,711.38,1.33017405]
[1735664117908,0.25843229,712.51,711.38,1.33017405]
[1735664118109,0.25843229,712.5,711.38,1.33017405]
[1735664118406,0.66146587,712.86,711.38,1.33017405]
[1735664118407,1.05224784,712.46,711.38,1.33017405]
[1735664118624,0.25843229,712.45,711.38,1.33017405]
[1735664118809,1.05224784,712.46,711.38,1.33017405]
[1735664119209,0.25843316,712.45,711.38,1.33017405]
[1735664119411,1.46643116,712.49,711.38,1.33017405]
[1735664119611,0.25843244,712.48,711.38,1.33017405]
[1735664120310,1.46643116,712.49,711.38,1.33017405]
[1735664120504,1.46643116,712.49,711.38,0.28114369]
[1735664120505,0.25843065,712.48,711.38,0.28114369]
[1735664122914,1.46643116,712.49,711.38,0.28114369]
[1735664123207,0.25843122,712.48,711.38,0.28114369]
[1735664123811,0.25842729,712.47,711.38,0.28114369]
[1735664124010,0.25842729,712.46,711.38,0.28114369]
[1735664124207,0.25842729,712.45,711.38,0.28114369]
[1735664124510,0.25842729,712.44,711.38,0.28114369]
[1735664124706,0.25842729,712.43,711.38,0.28114369]
[1735664124910,0.25842729,712.42,711.38,1.33017405]
[1735664125111,0.25842729,712.41,711.38,1.33017405]
[1735664125311,1.05224784,712.48,711.38,1.33017405]
[1735664125506,0.2584285,712.47,711.38,1.33017405]
[1735664125706,0.25842097,712.46,711.39,1.04903036]
[1735664127014,0.25842097,712.46,711.41,1.04903036]
[1735664127311,0.25842097,712.45,711.41,1.04903036]
[1735664127511,0.25842097,712.44,711.41,1.04903036]
[1735664127711,1.46643116,712.49,711.41,1.04903036]
[1735664127905,0.25841959,712.48,711.41,1.04903036]
[1735664128310,0.25842232,712.47,711.41,1.04903036]
[1735664128614,0.25842232,712.46,711.41,1.04903036]
[1735664128814,0.25842232,712.45,711.41,1.04903036]
[1735664129011,0.25842232,712.44,711.41,1.04903036]
[1735664129212,2.518679,712.49,711.41,1.04903036]
[1735664129608,0.25840452,712.48,711.42,1.04903036]
[1735664129914,1.46643116,712.49,711.38,0.28114369]
[1735664130314,0.66139721,714.37,711.38,0.28114369]
[1735664130611,1.46731225,712.54,711.38,0.28114369]
[1735664130809,0.25839799,712.53,711.38,0.28114369]
[1735664131013,1.05211333,712.56,711.48,1.04999904]
[1735664131215,1.46727616,712.54,711.48,1.04999904]
[1735664131416,0.25839799,712.53,711.48,1.04999904]
[1735664131612,0.2583994,712.52,711.48,1.04999904]
[1735664131815,0.2583994,712.51,711.48,1.04999904]
[1735664132011,0.2583994,712.5,711.48,1.04999904]
[1735664132219,1.46727616,712.54,711.48,1.04999904]
[1735664132411,0.25839635,712.53,711.48,1.04999904]
[1735664133420,0.25839635,712.53,711.49,1.04999904]
[1735664133619,0.25840267,712.52,711.49,1.04999904]
[1735664133821,0.25840267,712.51,711.49,1.04999904]
[1735664134121,0.25840267,712.5,711.49,1.04999904]
[1735664134421,0.25840267,712.49,711.47,1.04999904]
[1735664134622,0.25840267,712.48,711.47,1.04999904]
[1735664134818,0.25840267,712.47,711.47,1.04999904]
[1735664135119,0.25840267,712.46,711.47,1.04999904]
[1735664135322,0.25840267,712.45,711.51,1.04999904]
[1735664135519,1.05211333,712.47,711.51,1.04999904]
[1735664135913,0.25840424,712.46,711.51,1.04999904]
[1735664136119,1.05211333,712.47,711.51,1.04999904]
[1735664136321,1.05211333,712.51,711.48,1.04999904]
[1735664136522,0.258392,712.5,711.48,1.04999904]
[1735664137523,0.258392,712.5,711.38,0.28114369]
[1735664137524,1.05211333,712.51,711.5,1.04999904]
[1735664138023,0.25839155,712.5,711.5,1.04999904]
[1735664138321,1.05211333,712.51,711.5,1.04999904]
[1735664138522,1.46727616,712.54,711.53,1.04999904]
[1735664139824,1.46727616,712.54,711.38,0.28114369]
[1735664139825,1.46727616,712.54,711.38,1.33114273]
[1735664141921,1.46727616,712.54,711.38,0.28114369]
[1735664144229,1.05211333,712.81,711.38,0.28114369]
[1735664144617,1.46629728,712.65,711.38,0.28114369]
[1735664144825,1.05211333,712.81,711.38,0.28114369]
[1735664145027,1.4662458,712.64,711.38,0.28114369]
[1735664145424,0.28058361,712.8,711.39,1.04999904]
[1735664145623,1.46622006,712.68,711.39,1.04999904]
[1735664145825,0.28058361,712.8,711.39,1.04999904]
[1735664146219,1.46617888,712.67,711.41,1.04999904]
[1735664146426,0.28058361,712.8,711.41,1.04999904]
[1735664146822,1.46617373,712.66,711.41,1.04999904]
[1735664147024,0.28058361,712.8,711.41,1.04999904]
[1735664147227,1.46617888,712.65,711.38,0.28114369]
[1735664147627,0.28058361,712.8,711.38,0.28114369]
[1735664147828,1.46621491,712.64,711.38,0.28114369]
[1735664148029,0.28058361,712.8,711.38,0.28114369]
[1735664148225,1.46622006,712.63,711.38,0.28114369]
[1735664148628,0.28058361,712.8,711.38,0.28114369]
[1735664148824,1.46622521,712.62,711.38,0.28114369]
[1735664149030,0.28058361,712.8,711.38,0.28114369]
[1735664149230,0.25836635,712.79,711.38,0.28114369]
[1735664149428,1.46623036,712.62,711.38,0.28114369]
[1735664149631,0.28059148,712.78,711.39,1.04999904]
[1735664149932,1.46623036,712.64,711.39,1.04999904]
[1735664150230,0.28059148,712.78,711.39,1.04999904]
[1735664150529,1.46619947,712.63,711.42,1.04999904]
[1735664150730,0.28059148,712.78,711.42,1.04999904]
[1735664150931,1.46618917,712.62,711.42,1.04999904]
[1735664151233,0.28059148,712.78,711.42,1.04999904]
[1735664151434,1.46619432,712.62,711.42,1.04999904]
[1735664151637,1.46619432,712.62,711.39,1.04999904]
[1735664151933,1.46619432,712.64,711.39,1.04999904]
[1735664152633,1.46619432,712.64,711.4,1.04999904]
[1735664153729,1.46619432,712.64,711.41,1.04999904]
[1735664154931,1.46619432,712.64,711.38,1.33114273]
[1735664156329,1.46619432,712.64,711.43,1.04999904]
[1735664157330,1.46619432,712.64,711.41,1.04999904]
[1735664158432,1.46619432,712.64,711.45,1.04999904]
[1735664159435,1.46619432,712.64,711.46,1.04999904]
[1735664161636,0.28059148,712.78,711.46,1.04999904]
[1735664161840,0.25834154,712.77,711.46,1.04999904]
[1735664162331,0.28059148,712.78,711.54,1.04999904]
[1735664162534,0.25834296,712.77,711.54,1.04999904]
[1735664163743,0.25834296,712.77,711.55,1.04999904]
[1735664164842,1.31045629,712.77,711.56,1.04999904]
[1735664165043,0.25834296,712.76,711.56,1.04999904]
[1735664165742,0.25834296,712.76,711.57,1.04999904]
[1735664167746,1.05211333,712.66,711.62,1.04999904]
[1735664167942,0.25834296,712.65,711.62,1.04999904]
[1735664169650,0.25836114,712.64,711.62,1.04999904]
[1735664169949,0.25836114,712.63,711.62,1.04999904]
[1735664170144,0.25836114,712.62,711.62,1.04999904]
[1735664170347,0.25836114,712.61,711.62,1.04999904]
[1735664170548,0.25836114,712.6,711.62,1.04999904]
[1735664170749,0.25836114,712.59,711.62,1.04999904]
[1735664170949,0.25836114,712.58,711.62,1.04999904]
[1735664171151,0.25836114,712.57,711.62,1.04999904]
[1735664171351,1.05211333,712.61,711.66,1.04999904]
[1735664171546,0.25834535,712.6,711.66,1.04999904]
[1735664172352,0.25835528,712.59,711.72,1.04999904]
[1735664172551,0.25835528,712.58,711.72,1.04999904]
[1735664172750,0.25835528,712.57,711.72,1.04999904]
[1735664172947,1.05211333,712.61,711.72,1.04999904]
[1735664173252,1.05211333,712.59,711.71,1.04999904]
[1735664174550,1.05211333,712.61,711.73,1.04999904]
[1735664175151,0.25834799,712.6,711.73,1.04999904]
[1735664175954,1.31046132,712.6,711.73,1.04999904]
[1735664176150,1.05211333,712.6,711.73,1.04999904]
[1735664177554,1.05211333,712.62,711.78,1.04999904]
[1735664178352,1.05211333,712.64,711.73,1.04999904]
[1735664179358,0.28059148,712.78,711.72,1.04999904]
[1735664179359,1.05211333,712.63,711.72,1.04999904]
[1735664179857,0.25836158,712.62,711.72,1.04999904]
[1735664180358,1.05211333,712.63,711.72,1.04999904]
[1735664180561,0.28059148,712.78,711.68,1.04999904]
[1735664180562,1.05211333,712.59,711.68,1.04999904]
[1735664181758,1.05211333,712.57,711.68,1.04999904]
[1735664182861,1.33270481,712.78,711.72,1.04999904]
[1735664182862,1.05211333,712.61,711.72,1.04999904]
[1735664183961,1.05211333,712.6,711.69,1.04999904]
[1735664185162,1.05211333,712.64,711.74,1.04999904]
[1735664186160,1.05211333,712.63,711.73,1.04999904]
[1735664187265,1.31046001,712.62,711.73,1.04999904]
[1735664187564,0.25834668,712.61,711.73,1.04999904]
[1735664188563,0.25834668,712.61,711.77,1.04999904]
[1735664188564,1.05211333,712.57,711.77,1.04999904]
[1735664189867,1.31047567,712.56,711.75,1.04999904]
[1735664190069,1.05211333,712.56,711.75,1.04999904]
[1735664190968,1.05211333,712.54,711.73,1.04999904]
[1735664192171,1.05211333,712.53,711.72,1.04999904]
[1735664193069,1.05211333,712.52,711.72,1.04999904]
[1735664194072,1.05211333,712.55,711.75,1.04999904]
[1735664195275,1.05211333,712.64,711.78,1.04999904]
[1735664196473,1.05211333,712.67,711.8,1.04999904]
[1735664197769,1.46593697,712.68,711.75,1.04999904]
[1735664198873,1.46593697,712.68,711.73,1.04999904]
[1735664200980,1.46593697,712.68,711.69,1.04999904]
[1735664202179,1.46593697,712.68,711.66,1.04999904]
[1735664203479,2.5180503,712.68,711.63,1.04999904]
[1735664204481,1.46593697,712.68,711.6,1.04999904]
[1735664205283,1.46593697,712.68,711.62,1.04999904]
[1735664206983,1.46593697,712.68,711.6,1.04999904]
[1735664207982,1.46593697,712.68,711.38,0.28114369]
[1735664207983,1.05211333,712.67,711.57,1.04999904]
[1735664210477,0.25836537,712.66,711.57,1.04999904]
[1735664210678,1.05211333,712.67,711.57,1.04999904]
[1735664211088,1.05211333,712.65,711.6,1.04999904]
[1735664211884,1.05211333,712.65,711.38,0.28114369]
[1735664211885,1.05211333,712.67,711.64,1.04999904]
[1735664212284,0.25836004,712.66,711.64,1.04999904]
[1735664212885,0.25836004,712.66,711.4,1.04999904]
[1735664212886,1.05211333,712.63,711.63,1.04999904]
[1735664213482,0.25836905,712.62,711.63,1.04999904]
[1735664213882,1.05211333,712.62,711.61,1.04999904]
[1735664214985,1.46593697,712.68,711.57,1.04999904]
[1735664214986,1.05211333,712.65,711.57,1.04999904]
[1735664216081,0.25837099,712.64,711.57,1.04999904]
[1735664216783,1.05211333,712.65,711.57,1.04999904]
[1735664217485,1.05211333,712.63,711.59,1.04999904]
[1735664218891,1.46593697,712.68,711.59,1.04999904]
[1735664218892,1.05211333,712.66,711.59,1.04999904]
[1735664219092,0.25836679,712.65,711.59,1.04999904]
[1735664219587,1.31048012,712.65,711.6,1.04999904]
[1735664219790,1.05211333,712.65,711.6,1.04999904]
[1735664219991,0.25836888,712.64,711.6,1.04999904]
[1735664220191,1.05211333,712.65,711.6,1.04999904]
[1735664220793,1.05211333,712.64,711.59,1.04999904]
[1735664221697,1.05211333,712.67,711.62,1.04999904]
[1735664222795,1.05211333,712.67,711.59,1.04999904]
[1735664223698,0.25836283,712.66,711.59,1.04999904]
[1735664224297,0.25836317,712.65,711.59,1.04999904]
[1735664224496,0.25836317,712.64,711.59,1.04999904]
[1735664224695,0.25836317,712.63,711.59,1.04999904]
[1735664224894,0.25836317,712.62,711.59,1.04999904]
[1735664225094,0.25836317,712.61,711.64,1.04999904]
[1735664226502,1.05211333,712.62,711.64,1.04999904]
[1735664226697,0.25835957,712.61,711.64,1.04999904]
[1735664227099,0.25836627,712.6,711.64,1.04999904]
[1735664227299,0.25836627,712.59,711.65,1.04999904]
[1735664227595,1.05211333,712.63,711.65,1.04999904]
[1735664227799,0.25836466,712.62,711.65,1.04999904]
[1735664228904,0.25836466,712.62,711.39,0.6811424]
[1735664228905,1.05211333,712.6,711.66,1.04999904]
[1735664229204,0.25836466,712.59,711.66,1.04999904]
[1735664229599,1.05211333,712.6,711.66,1.04999904]
[1735664229801,0.25837305,712.59,711.66,1.04999904]
[1735664230000,1.05211333,712.58,711.64,1.04999904]
[1735664230197,0.25837305,712.57,711.64,1.04999904]
[1735664230804,1.05211333,712.58,711.64,1.04999904]
[1735664231210,1.46593697,712.68,711.63,1.04999904]
[1735664231211,1.05211333,712.57,711.63,1.04999904]
[1735664231604,0.25836952,712.56,711.63,1.04999904]
[1735664231904,1.05211333,712.57,711.63,1.04999904]
[1735664232207,0.2583723,712.56,711.63,1.04999904]
[1735664232408,0.2583723,712.56,711.66,1.04999904]
[1735664233208,1.05211333,712.57,711.66,1.04999904]
[1735664233906,1.05211333,712.55,711.7,1.04999904]
[1735664235410,1.46593697,712.68,711.69,1.04999904]
[1735664235411,1.05211333,712.56,711.69,1.04999904]
[1735664236605,1.05211333,712.55,711.71,1.04999904]
[1735664237608,1.05211333,712.55,711.72,1.04999904]
[1735664238409,1.05211333,712.54,711.72,1.04999904]
[1735664239413,1.05211333,712.53,711.71,1.04999904]
[1735664240827,1.05211333,712.53,711.67,1.04999904]
[1735664241829,1.05211333,712.53,711.7,1.04999904]
[1735664243117,1.05211333,712.52,711.69,1.04999904]
[1735664244516,1.46615314,712.55,711.71,1.04999904]
[1735664244517,1.05211333,712.5,711.71,1.04999904]
[1735664245512,1.05211333,712.49,711.7,1.04999904]
[1735664246614,1.05211333,712.49,711.72,1.04999904]
[1735664246819,1.05211333,712.51,711.72,1.04999904]
[1735664247622,1.05211333,712.5,711.72,1.04999904]
[1735664248822,1.05211333,712.5,711.53,1.04999904]
[1735664248823,1.05211333,712.48,711.71,1.04999904]
[1735664250126,1.05211333,712.47,711.73,1.04999904]
[1735664251130,1.05211333,712.47,711.72,1.04999904]
[1735664253628,1.05211333,712.48,711.72,1.04999904]
[1735664254629,1.05211333,712.45,711.7,1.04999904]
[1735664255631,1.46615314,712.55,711.38,0.28114369]
[1735664256230,0.25842979,712.54,711.38,0.28114369]
[1735664256832,0.25842179,712.53,711.38,0.28114369]
[1735664257031,0.25842179,712.52,711.38,0.28114369]
[1735664257227,0.25842179,712.51,711.38,0.28114369]
[1735664257430,0.25842179,712.5,711.38,0.28114369]
[1735664257631,0.25842179,712.49,711.38,0.28114369]
[1735664257934,1.31053907,712.48,711.46,1.04999904]
[1735664258232,1.05211333,712.48,711.46,1.04999904]
[1735664258432,0.25843235,712.47,711.46,1.04999904]
[1735664258730,1.05211333,712.48,711.46,1.04999904]
[1735664258934,0.25843212,712.47,711.42,1.04999904]
[1735664259129,1.05211333,712.51,711.42,1.04999904]
[1735664259433,0.25842201,712.5,711.42,1.04999904]
[1735664259831,0.25842201,712.5,711.41,1.04999904]
[1735664260127,0.25842201,712.49,711.41,1.04999904]
[1735664260327,1.05211333,712.52,711.41,1.04999904]
[1735664260328,0.25842201,712.48,711.41,1.04999904]
[1735664260531,1.05211333,712.52,711.41,1.04999904]
[1735664260733,0.25842388,712.51,711.41,1.04999904]
[1735664261327,1.05211333,712.52,711.41,1.04999904]
[1735664261533,0.25842388,712.51,711.41,1.04999904]
[1735664262127,0.25842388,712.51,711.39,1.04999904]
[1735664262326,1.05211333,712.54,711.39,1.04999904]
[1735664262532,0.25842258,712.53,711.39,1.04999904]
[1735664262732,1.05211333,712.54,711.39,1.04999904]
[1735664263130,1.46615314,712.55,711.38,0.28114369]
[1735664263329,0.25842453,712.54,711.38,0.28114369]
[1735664263626,1.46615314,712.55,711.38,0.28114369]
[1735664274336,0.25844078,712.54,711.38,0.28114369]
[1735664274735,0.25844067,712.53,711.38,0.28114369]
[1735664274934,0.25844067,712.52,711.38,0.28114369]
[1735664275235,0.25844067,712.51,711.38,0.28114369]
[1735664275438,0.25844067,712.5,711.38,0.28114369]
[1735664275637,1.46615314,712.55,711.38,0.28114369]
[1735664275638,0.25844067,712.49,711.38,0.28114369]
[1735664275837,0.25844067,712.48,711.38,0.28114369]
[1735664276034,0.25844067,712.47,711.38,0.28114369]
[1735664276231,0.25844067,712.46,711.38,0.28114369]
[1735664276432,0.25844067,712.45,711.38,0.28114369]
[1735664277539,0.2584382,712.44,711.38,0.28114369]
[1735664277740,0.2584382,712.43,711.38,0.28114369]
[1735664277938,0.2584382,712.42,711.38,0.28114369]
[1735664278134,0.2584382,712.41,711.38,0.28114369]
[1735664278334,0.2584382,712.4,711.38,0.28114369]
[1735664278539,0.2584382,712.39,711.38,1.33114273]
[1735664278843,0.2584382,712.38,711.38,1.33114273]
[1735664279139,0.2584382,712.37,711.38,1.33114273]
[1735664279335,0.2584382,712.36,711.38,1.33114273]
[1735664279540,0.2584382,712.35,711.38,1.33114273]
[1735664279737,0.2584382,712.34,711.38,1.33114273]
[1735664279944,1.46648265,712.46,711.38,1.33114273]
[1735664280143,0.25843738,712.45,711.38,1.33114273]
[1735664280542,0.25843738,712.45,711.39,1.04999904]
[1735664281842,2.51859598,712.46,711.39,1.04999904]
[1735664282043,0.25844051,712.45,711.39,1.04999904]
[1735664282245,1.31055384,712.45,711.4,1.04999904]
[1735664282438,0.25844051,712.44,711.4,1.04999904]
[1735664283338,0.25844051,712.44,711.41,1.04999904]
[1735664284144,0.25844051,712.44,711.44,1.04999904]
[1735664284343,0.25844051,712.43,711.44,1.04999904]
[1735664284544,0.25844051,712.45,711.44,1.04999904]
[1735664284742,0.25844051,712.44,711.44,1.04999904]
[1735664284944,0.25844051,712.43,711.44,1.04999904]
[1735664285140,0.25844051,712.42,711.44,1.04999904]
[1735664286645,1.05211333,712.41,711.46,1.04999904]
[1735664286948,0.25844051,712.4,711.46,1.04999904]
[1735664287144,0.25843529,712.39,711.46,1.04999904]
[1735664287446,0.25843529,712.38,711.46,1.04999904]
[1735664287659,0.25843529,712.37,711.46,1.04999904]
[1735664287847,0.25843791,712.36,711.47,1.04999904]
[1735664288046,0.25843791,712.35,711.47,1.04999904]
[1735664288346,0.25844109,712.34,711.47,1.04999904]
[1735664288552,1.05211333,712.4,711.47,1.04999904]
[1735664288945,1.05211333,712.35,711.5,1.04999904]
[1735664290146,1.46648265,712.46,711.38,0.28114369]
[1735664298260,0.25843243,712.45,711.38,0.28114369]
[1735664299761,1.05211333,712.32,711.55,1.04999904]
[1735664300460,1.05211333,712.31,711.54,1.04999904]
[1735664301660,1.05211333,712.3,711.53,1.04999904]
[1735664302559,1.05211333,712.31,711.53,1.04999904]
[1735664303559,1.05211333,712.33,711.53,1.04999904]
[1735664303766,1.05211333,712.33,711.55,1.04999904]
[1735664306963,1.05211333,712.31,711.54,1.04999904]
[1735664307868,1.05211333,712.31,711.55,1.04999904]
[1735664308968,1.05211333,712.31,711.54,1.04999904]
[1735664309963,1.05211333,712.31,711.11,1.25999885]
[1735664309964,1.05211333,712.42,711.37,1.04999904]
[1735664310171,1.46665262,712.3,711.37,1.04999904]
[1735664310364,0.28073721,712.41,711.37,1.04999904]
[1735664310561,0.25848288,712.4,711.37,1.04999904]
[1735664310761,1.46674534,712.29,711.29,1.04999904]
[1735664311067,1.05211333,712.33,711.29,1.04999904]
[1735664311366,1.46679171,712.28,711.29,1.04999904]
[1735664311967,1.46679171,712.28,711.27,1.04999904]
[1735664312968,1.46679171,712.28,711.24,1.04999904]
[1735664313868,1.46679171,712.28,711.23,1.04999904]
[1735664315069,1.46679171,712.28,711.24,1.04999904]
[1735664315870,1.46679171,712.28,711.21,1.04999904]
[1735664318371,1.46679171,712.28,711.19,1.04999904]
[1735664318572,0.25848652,712.27,711.19,1.04999904]
[1735664318974,0.25848652,712.26,711.19,1.04999904]
[1735664319169,0.25848652,712.25,711.31,1.04999904]
[1735664319372,1.46679171,712.28,711.31,1.04999904]
[1735664319373,0.25848652,712.24,711.31,1.04999904]
[1735664319574,1.46679171,712.28,711.31,1.04999904]
[1735664319773,0.25848991,712.27,711.31,1.04999904]
[1735664320376,0.25848991,712.27,711.29,1.04999904]
[1735664321474,1.46679171,712.28,711.29,1.04999904]
[1735664322881,0.25849547,712.27,711.22,1.04999904]
[1735664323476,1.46679171,712.28,711.22,1.04999904]
[1735664324072,1.46679171,712.28,711.19,1.04999904]
[1735664325078,1.46679171,712.28,711.2,1.04999904]
[1735664326179,1.46679171,712.28,711.21,1.04999904]
[1735664326381,0.258493,712.27,711.21,1.04999904]
[1735664326781,0.25850214,712.26,711.21,1.04999904]
[1735664326976,0.25850214,712.25,711.21,1.04999904]
[1735664327283,0.25850214,712.24,711.23,1.04999904]
[1735664327475,2.51890504,712.28,711.23,1.04999904]
[1735664327677,0.25850777,712.27,711.23,1.04999904]
[1735664328281,1.3106211,712.27,711.21,1.04999904]
[1735664328582,0.25850777,712.26,711.21,1.04999904]
[1735664329278,0.25850777,712.26,711.19,1.04999904]
[1735664329577,0.25851127,712.25,711.19,1.04999904]
[1735664329883,0.25851127,712.24,711.19,1.04999904]
[1735664330079,1.46679171,712.28,711.19,1.04999904]
[1735664330279,0.2585078,712.27,711.19,1.04999904]
[1735664330482,0.2585078,712.27,711.14,1.04999904]
[1735664331578,0.2585078,712.27,711.12,1.04999904]
[1735664332280,0.25851476,712.26,711.12,1.04999904]
[1735664332483,1.46679171,712.28,711.12,1.04999904]
[1735664332484,0.25851476,712.25,711.12,1.04999904]
[1735664332683,1.46679171,712.28,711.12,1.04999904]
[1735664332981,0.25850955,712.27,711.11,1.04999904]
[1735664334182,0.25850955,712.27,711.13,1.04999904]
[1735664334777,0.25851467,712.26,711.13,1.04999904]
[1735664334979,0.25851467,712.25,711.13,1.04999904]
[1735664335283,1.46679171,712.28,711.11,1.04999904]
[1735664335478,0.25851453,712.27,711.11,1.04999904]
[1735664337482,0.25851131,712.26,711.11,1.04999904]
[1735664337682,0.25851131,712.25,711.12,1.04999904]
[1735664337982,1.46679171,712.28,711.12,1.04999904]